{"text_format":"1","workbook":"xlsx","n_sheets":4,"sheets":["Abschlusszahlen","Kennziffern","Auswertung","Texte"],"not_rendered":{"charts":0,"images":1,"macros":0,"external_links":0,"defined_names":0,"comments":0,"pivot_tables":0},"unopened":[],"bounds":{"document_bytes":16777216,"sheet_cells":100000,"rows_first":2000,"rows_last":500,"rows_between":2000,"halvings":0,"cell_chars":16384,"cell_head_chars":4096},"cells_cut":0,"cells_raw":0,"read":"whole","date_system":"1900"}

{"sheet":"Abschlusszahlen","index":0,"n_rows":26,"n_cols":7,"rows_kept":26,"cut":false,"hidden":false,"merged":[[2,2,2,4],[8,2,8,4],[21,5,21,6],[22,5,25,6]]}
[]
[]
[null,"Aktiva","         Bilanz der Tropic GmbH zum 31.12.20..",null,null,null,"Passiva"]
[null,null,"Vorjahr","Berichtsjahr",null,"Vorjahr","Berichtsjahr"]
[null,"Anlagevermögen",4050000,4890000,"Eigenkapital",2800000,3300000]
[null,"Umlaufvermögen",677000,1024000,"Fremdkapital",1927000,2614000]
[null,null,{"$f":"SUM(C5:C6)","v":4727000},{"$f":"SUM(D5:D6)","v":5914000},null,{"$f":"F5+F6","v":4727000},{"$f":"G5+G6","v":5914000}]
[]
[null,null,"Gewinn- und Verlust"]
[null,null,"Vorjahr","Berichtsjahr",null,"Vorjahr","Berichtsjahr"]
[null,"Bestandsminderungen",0,0,"Umsatzerlöse",5500000,8200000]
[null,"Materialaufwand",3036000,5168000,"Bestandsmehrungen",20000,280000]
[null,"Personalaufwand",1892000,2550000,"Zinserträge",4000,12000]
[null,"Abschreibungen",170000,260000,"Sonstige Erträge",23000,25000]
[null,"Steuern",19000,29000,"Außerordentliche Erträge"]
[null,"Sonstige Aufwendungen",120000,120000,"Verlust",{"$f":"IF(F20>SUM(F11:F15),F20-SUM(F11:F15),0)","v":0},{"$f":"IF(G20>SUM(G11:G15),G20-SUM(G11:G15),0)","v":0}]
[null,"Zinsaufwand",120000,110000]
[null,"Außerordentliche Aufwendungen"]
[null,"Gewinn",{"$f":"IF(C20>SUM(C11:C18),C20-SUM(C11:C18),0)","v":190000},{"$f":"IF(D20>SUM(D11:D18),D20-SUM(D11:D18),0)","v":280000}]
[null,null,{"$f":"IF(SUM($F$11:$F$15)>SUM($C$11:$C$18),SUM($F$11:$F$15),SUM($C$11:$C$18))","v":5547000},{"$f":"IF(SUM($G$11:$G$15)>SUM($D$11:$D$18),SUM($G$11:$G$15),SUM($D$11:$D$18))","v":8517000},null,{"$f":"IF(SUM($F$11:$F$15)>SUM($C$11:$C$18),SUM($F$11:$F$15),SUM($C$11:$C$18))","v":5547000},{"$f":"IF(SUM($G$11:$G$15)>SUM($D$11:$D$18),SUM($G$11:$G$15),SUM($D$11:$D$18))","v":8517000}]
[]
[null,"Zusatzangaben ","Vorjahr","Berichtsjahr",null,"Eingabefelder"]
[null,"kalkulatorischer Unternehmerlohn ",100000,100000,"bei Personengesellschaften","In diese Felder können Sie die Daten einer Bilanz und einer Gewinn- und Verlustrechnung eintragen."]
[null,"Anfangseigenkapital des Vorjahres",2600000]
[null,"Anfangsbilanzsumme des Vorjahres",5000000]
[null,"Zuführung zu den Rückstellungen",40000,20000]

{"sheet":"Kennziffern","index":1,"n_rows":25,"n_cols":4,"rows_kept":25,"cut":false,"hidden":false,"merged":[]}
[]
[null,"Kennziffern der Gewinn- und Verlustrechnung"]
[]
[null,null,"Vorjahr","Berichtsjahr"]
[null,"Eigenkapital am Jahresanfang",{"$f":"Abschlusszahlen!C24","v":2600000},{"$f":"C6","v":2800000}]
[null,"Eigenkapital am Jahresende",{"$f":"Abschlusszahlen!F5","v":2800000},{"$f":"Abschlusszahlen!G5","v":3300000}]
[null,"durchschnittliches Eigenkapital",{"$f":"(C6+C5)/2","v":2700000},{"$f":"(D6+D5)/2","v":3050000}]
[null,"Gesamtkapital am Jahresanfang",{"$f":"Abschlusszahlen!C25","v":5000000},{"$f":"C9","v":4727000}]
[null,"Gesamtkapital am Jahresende",{"$f":"Abschlusszahlen!F7","v":4727000},{"$f":"Abschlusszahlen!G7","v":5914000}]
[null,"durchschnittliches Gesamtkapital",{"$f":"(C9+C8)/2","v":4863500},{"$f":"(D9+D8)/2","v":5320500}]
[null,"Jahresüberschuss",{"$f":"IF(Abschlusszahlen!C19>0,Abschlusszahlen!C19,(Abschlusszahlen!F16*-1))","v":190000},{"$f":"IF(Abschlusszahlen!D19>0,Abschlusszahlen!D19,(Abschlusszahlen!G16*-1))","v":280000}]
[null,"Kapitalumschlag"]
[null,"Eigenkapitalumschlagshäufigkeit",{"$f":"Abschlusszahlen!F11/C7","v":2.0370370370370372},{"$f":"Abschlusszahlen!G11/D7","v":2.6885245901639343}]
[null,"Gesamtkapitalumschlagshäufigkeit",{"$f":"Abschlusszahlen!F11/C10","v":1.1308728282101368},{"$f":"Abschlusszahlen!G11/D10","v":1.5412085330326097}]
[null,"Eigenkapitalumschlagsdauer in Tagen",{"$f":"360/C13","v":176.72727272727272},{"$f":"360/D13","v":133.90243902439025}]
[null,"Gesamtkapitalumschlagsdauer in Tagen",{"$f":"360/C14","v":318.33818181818179},{"$f":"360/D14","v":233.5829268292683}]
[null,"Gewinnkorrekturen"]
[null,"bereinigter Jahresgewinn",{"$f":"IF(Abschlusszahlen!C19>0,Abschlusszahlen!C19+Abschlusszahlen!C18-Abschlusszahlen!F15-Abschlusszahlen!C23,Abschlusszahlen!F16-Abschlusszahlen!C18+Abschlusszahlen!F15-Abschlusszahlen!C23)","v":90000},{"$f":"IF(Abschlusszahlen!D19>0,Abschlusszahlen!D19+Abschlusszahlen!D18-Abschlusszahlen!G15-Abschlusszahlen!D23,Abschlusszahlen!G16+Abschlusszahlen!D18-Abschlusszahlen!G15-Abschlusszahlen!D23)","v":180000}]
[null,"Rentabilitäten"]
[null,"Eigenkapitalrentabilität",{"$f":"C11/C7","v":7.0370370370370375E-2},{"$f":"D11/D7","v":9.1803278688524587E-2}]
[null,"Gesamtkapitalrentabilität",{"$f":"(C11+Abschlusszahlen!C17)/Kennziffern!C10","v":6.3740104862753166E-2},{"$f":"(D11+Abschlusszahlen!D17)/Kennziffern!D10","v":7.3301381449111927E-2}]
[null,"Umsatzrentabilität",{"$f":"C11/Abschlusszahlen!F11","v":3.4545454545454546E-2},{"$f":"D11/Abschlusszahlen!G11","v":3.4146341463414637E-2}]
[null,"Selbstfinanzierungskraft"]
[null,"Cashflow",{"$f":"C11+Abschlusszahlen!C14+Abschlusszahlen!C26","v":400000},{"$f":"D11+Abschlusszahlen!D14+Abschlusszahlen!D26","v":560000}]
[null,"Cashflow-Umsatzverdienstrate",{"$f":"C24/Abschlusszahlen!F11","v":7.2727272727272724E-2},{"$f":"D24/Abschlusszahlen!G11","v":6.8292682926829273E-2}]

{"sheet":"Auswertung","index":2,"n_rows":51,"n_cols":10,"rows_kept":51,"cut":false,"hidden":false,"merged":[[49,8,50,9],[38,1,38,9],[39,8,39,9],[42,8,43,9],[45,1,45,9],[46,8,46,9],[25,8,25,9],[28,8,29,9],[31,1,31,9],[32,8,32,9],[35,8,36,9],[24,1,24,9],[1,1,1,9],[3,1,4,3],[5,1,5,2],[6,1,6,3],[7,1,7,2],[10,1,10,9],[11,8,11,9],[14,8,15,9],[17,1,17,9],[18,8,18,9],[21,8,22,9]]}
[]
[null,"Auswertung"]
[]
[null,"Abweichungstoleranz in die gelben Felder eintragen."]
[]
[null,"niedriger Abweichungswert",null,-0.01]
[null,"Differenz = Abweichungstoleranz"]
[null,"hoher Abweichungswert",null,0.01]
[]
[]
[null,"Eigenkapitalumschlagshäufigkeit"]
[null,null,"Vorjahr","Berichtsjahr","Veränderung",null,null,null,"Tolereranzbereich"]
[null,"Umschlagshäufigkeit des Eigenkapitals",{"$f":"Kennziffern!C13","v":2.0370370370370372},{"$f":"Kennziffern!D13","v":2.6885245901639343},{"$f":"D13-C13","v":0.6514875531268971},null,null,null,"niedriger Wert","hoher Wert"]
[null,"Eigenkapitalumschlagsdauer in Tagen",{"$f":"Kennziffern!C15","v":176.72727272727272},{"$f":"Kennziffern!D15","v":133.90243902439025},{"$f":"D14-C14","v":-42.824833702882472},null,null,null,-0.1,0.1]
[null,{"$f":"IF(D13>C13,Texte!A4,IF(D13<C13,Texte!A5,Texte!A6))","v":"Bessere Ausnutzung des Eigenkapitaleinsatzes."},null,null,null,null,null,null,{"$f":"IF(I14>J14,\"Toleranzbereich ungültig!\",\"\")","v":""}]
[null,{"$f":"IF(D13>C13,Texte!A7,IF(D13<C13,Texte!A8,Texte!A9))","v":"Schnellerer Eigenkapitalrückfluss über die Umsatzerlöse."}]
[]
[null,"Gesamtkapitalumschlagshäufigkeit"]
[null,null,"Vorjahr","Berichtsjahr","Veränderung",null,null,null,"Tolereranzbereich"]
[null,"Umschlagshäufigkeit des Gesamtkapitals",{"$f":"Kennziffern!C14","v":1.1308728282101368},{"$f":"Kennziffern!D14","v":1.5412085330326097},{"$f":"D20-C20","v":0.41033570482247295},null,null,null,"niedriger Wert","hoher Wert"]
[null,"Gesamtkapitalumschlagsdauer in Tagen",{"$f":"Kennziffern!C16","v":318.33818181818179},{"$f":"Kennziffern!D16","v":233.5829268292683},{"$f":"D21-C21","v":-84.755254988913492},null,null,null,-0.1,0.1]
[null,{"$f":"IF(D20>C20,Texte!A12,IF(D20<C20,Texte!A13,Texte!A14))","v":"Bessere Ausnutzung des Gesamtkapitaleinsatzes."},null,null,null,null,null,null,{"$f":"IF(I21>J21,\"Toleranzbereich ungültig!\",\"\")","v":""}]
[null,{"$f":"IF(D20>C20,Texte!A15,IF(D20<C20,Texte!A16,Texte!A17))","v":"Schnellerer Gesamtkapitalrückfluss über die Umsatzerlöse."}]
[]
[null,"Eigenkapitalrentabilität"]
[null,null,"Vorjahr","Berichtsjahr","Veränderung",null,null,null,"Tolereranzbereich in %"]
[null,"Eigenkapitalrentabilität",{"$f":"Kennziffern!C20","v":7.0370370370370375E-2},{"$f":"Kennziffern!D20","v":9.1803278688524587E-2},{"$f":"D27-C27","v":2.1432908318154212E-2},null,null,null,"niedriger Wert","hoher Wert"]
[null,{"$f":"IF(D27>C27,Texte!A20,IF(D27<C27,Texte!A21,Texte!A22))","v":"Erhöhung der Eigenkapitalrentabilität gegenüber dem Vorjahr."},null,null,null,null,null,null,-1,1]
[null,{"$f":"IF(D27>C27,Texte!A23,IF(D27<C27,Texte!A24,Texte!A25))","v":"Der Eigenkapitaleinsatz hat sich besser verzinst."},null,null,null,null,null,null,{"$f":"IF(I28>J28,\"Toleranzbereich ungültig!\",\"\")","v":""}]
[]
[]
[null,"Gesamtkapitalrentabilität"]
[null,null,"Vorjahr","Berichtsjahr","Veränderung",null,null,null,"Tolereranzbereich in %"]
[null,"Gesamtkapitalrentabilität",{"$f":"Kennziffern!C21","v":6.3740104862753166E-2},{"$f":"Kennziffern!D21","v":7.3301381449111927E-2},{"$f":"D34-C34","v":9.5612765863587607E-3},null,null,null,"niedriger Wert","hoher Wert"]
[null,null,null,null,null,null,null,null,-1,1]
[null,{"$f":"IF(D34>C34,Texte!A28,IF(D34<C34,Texte!A29,Texte!A30))","v":"Erhöhung der Gesamtkapitalrentabilität gegenüber dem Vorjahr."},null,null,null,null,null,null,{"$f":"IF(I35>J35,\"Toleranzbereich ungültig!\",\"\")","v":""}]
[null,{"$f":"IF(D34>C34,Texte!A31,IF(D34<C34,Texte!A32,Texte!A33))","v":"Der Gesamtkapitaleinsatz hat sich besser verzinst."}]
[]
[null,"Umsatzrentabilität"]
[null,null,"Vorjahr","Berichtsjahr","Veränderung",null,null,null,"Tolereranzbereich in %"]
[null,"Umsatzrentabilität",{"$f":"Kennziffern!C22","v":3.4545454545454546E-2},{"$f":"Kennziffern!D22","v":3.4146341463414637E-2},{"$f":"D41-C41","v":-3.9911308203990914E-4},null,null,null,"niedriger Wert","hoher Wert"]
[null,null,null,null,null,null,null,null,-0.5,0.5]
[null,{"$f":"IF(D41>C41,Texte!A36,IF(D41<C41,Texte!A37,Texte!A38))","v":"Verminderung des Gewinnanteils an den Umsatzerlösen."},null,null,null,null,null,null,{"$f":"IF(I42>J42,\"Toleranzbereich ungültig1!\",\"\")","v":""}]
[null,{"$f":"IF(D41>C41,Texte!A39,IF(D41<C41,Texte!A40,Texte!A41))","v":"Niedrigerer Anteil am Umsatz für Investitionen und Gewinnausschüttung. "}]
[]
[null,"Cashflow"]
[null,null,"Vorjahr","Berichtsjahr","Veränderung",null,null,null,"Tolereranzbereich in %"]
[null,"Cashlfow",{"$f":"Kennziffern!C24","v":400000},{"$f":"Kennziffern!D24","v":560000},{"$f":"D48-C48","v":160000},null,null,null,"niedriger Wert","hoher Wert"]
[null,"Cashflow-Umsatzverdienstrate",{"$f":"Kennziffern!C25","v":7.2727272727272724E-2},{"$f":"Kennziffern!D25","v":6.8292682926829273E-2},{"$f":"D49-C49","v":-4.4345898004434503E-3},null,null,null,-0.5,0.5]
[null,{"$f":"IF(D48>C48,Texte!A44,IF(C48<D48,Texte!A45,Texte!A46))","v":"Erhöhter Cashflow gegenüber dem Vorjahr."},null,null,null,null,null,null,{"$f":"IF(I49>J49,\"Toleranzbereich ungültig!\",\"\")","v":""}]
[null,{"$f":"IF(D49>C49,Texte!A47,IF(D49<C49,Texte!A48,Texte!A49))","v":"Verminderter Cashflowanteil an den Umsatzerlösen."}]

{"sheet":"Texte","index":3,"n_rows":49,"n_cols":1,"rows_kept":49,"cut":false,"hidden":false,"merged":[]}
["Texte"]
[]
["Eigenkapitalumschlagshäufigkeit"]
["Bessere Ausnutzung des Eigenkapitaleinsatzes."]
["Schlechtere Ausnutzung des Eigenkapitaleinsatzes."]
["Unveränderte Ausnutzung des Eigenkapitaleinsatzes."]
["Schnellerer Eigenkapitalrückfluss über die Umsatzerlöse."]
["Langsamerer Eigenkapitalrückfluss über die Umsatzerlöse."]
["Unveränderte Dauer des Eigenkaitalrückflusses."]
[]
["Gesamtkapitalumschlagshäufigkeit"]
["Bessere Ausnutzung des Gesamtkapitaleinsatzes."]
["Schlechtere Ausnutzung des Gesamtkapitaleinsatzes."]
["Unveränderte Ausnutzung des Gesamtkapitaleinsatzes."]
["Schnellerer Gesamtkapitalrückfluss über die Umsatzerlöse."]
["Langsamerer Gesamtkapitalrückfluss über die Umsatzerlöse."]
["Unveränderte Dauer des Gesamtkapitalrückflusses."]
[]
["Eigenkapitalrentabilität"]
["Erhöhung der Eigenkapitalrentabilität gegenüber dem Vorjahr."]
["Verminderung der Eigenkapitalrentabilität gegenüber dem Vorjahr."]
["Unveränderte Eigenkapitalrentabilität."]
["Der Eigenkapitaleinsatz hat sich besser verzinst."]
["Der Eigenkapitaleinsatz hat sich schlechter verzinst."]
["Unveränderte Eigenkapitalverzinsung"]
[]
["Gesamtkapitalrentabilität"]
["Erhöhung der Gesamtkapitalrentabilität gegenüber dem Vorjahr."]
["Verminderung der Gesamtkapitalrentabilität gegenüber dem Vorjahr."]
["Unterveränderte Gesamtkapitalrentabilität"]
["Der Gesamtkapitaleinsatz hat sich besser verzinst."]
["Der Gesamtkapitaleinsatz hat sich schlechter verzinst."]
["Unveränderte Gesamtkapitalverzinsung"]
[]
["Umsatzrentabilität"]
["Erhöhung des Gewinnanteils an den Umsatzerlösen."]
["Verminderung des Gewinnanteils an den Umsatzerlösen."]
["Unveränderter Gewinnanteil an den Umsatzerlösen"]
["Höhere Anteil am Umsatz für Investitionen und Gewinnausschüttung. "]
["Niedrigerer Anteil am Umsatz für Investitionen und Gewinnausschüttung. "]
["Unveränderter Anteil am Umsatz für Investitionen und Gewinnausschüttung. "]
[]
["Liqudität"]
["Erhöhter Cashflow gegenüber dem Vorjahr."]
["Verminderter Cashflow gegenüber dem Vorjahr."]
["Unveränderter Cashflow."]
["Verbesserter Cashflowanteil an den Umsatzerlösen."]
["Verminderter Cashflowanteil an den Umsatzerlösen."]
["Unveränderter Cashflowanteil an den Umsatzerlösen."]